[Event "Titled Tuesday Blitz April 18 Early 2023"]
[White "Milchev, Nikolay"]
[Black "Nagy, Gabor"]
[WhiteFideId "2906090"]
[BlackFideId "737119"]
[WhiteElo "2449"]
[BlackElo "2514"]
[Result "1/2-1/2"]
[Round "04"]
[TimeControl "180+2"]
[Date "2023.04.18"]
[WhiteClock "0:00:15"]
[BlackClock "0:00:12"]

1. Nf3 {[%clk 0:03:00]}  d5 {[%clk 0:02:59]} 2. c4 {[%clk 0:03:01]}  d4 {[%clk 0:02:58]} 3. b4 {[%clk 0:02:59]}  Bg4 {[%clk 0:02:57]} 4. Ne5 {[%clk 0:02:59]}  Bh5 {[%clk 0:02:53]} 5. g4 {[%clk 0:02:56]}  Bg6 {[%clk 0:02:49]} 6. Bg2 {[%clk 0:02:53]}  c6 {[%clk 0:02:48]} 7. d3 {[%clk 0:02:47]}  e6 {[%clk 0:02:45]} 8. Qb3 {[%clk 0:02:44]}  Nd7 {[%clk 0:02:44]} 9. Nxd7 {[%clk 0:02:39]}  Qxd7 {[%clk 0:02:44]} 10. b5 {[%clk 0:02:36]}  Bd6 {[%clk 0:02:29]} 11. a4 {[%clk 0:02:33]}  Ne7 {[%clk 0:02:25]} 12. Nd2 {[%clk 0:02:32]}  O-O {[%clk 0:02:21]} 13. Ba3 {[%clk 0:02:21]}  c5 {[%clk 0:02:19]} 14. a5 {[%clk 0:02:21]}  Rae8 {[%clk 0:02:17]} 15. h4 {[%clk 0:02:16]}  f5 {[%clk 0:02:16]} 16. h5 {[%clk 0:02:15]}  Bf7 {[%clk 0:02:15]} 17. g5 {[%clk 0:02:14]}  e5 {[%clk 0:02:15]} 18. O-O-O {[%clk 0:02:10]}  Qd8 {[%clk 0:02:08]} 19. Qa4 {[%clk 0:02:04]}  b6 {[%clk 0:02:05]} 20. a6 {[%clk 0:02:03]}  Nc8 {[%clk 0:02:05]} 21. g6 {[%clk 0:01:57]}  hxg6 {[%clk 0:02:03]} 22. hxg6 {[%clk 0:01:58]}  Bxg6 {[%clk 0:02:04]} 23. Bc6 {[%clk 0:01:51]}  Re7 {[%clk 0:02:00]} 24. Rdg1 {[%clk 0:01:51]}  Be8 {[%clk 0:01:59]} 25. Bd5+ {[%clk 0:01:50]}  Bf7 {[%clk 0:01:59]} 26. Bc6 {[%clk 0:01:40]}  Re6 {[%clk 0:01:48]} 27. Bd5 {[%clk 0:01:37]}  Rf6 {[%clk 0:01:48]} 28. Bxf7+ {[%clk 0:01:36]}  R8xf7 {[%clk 0:01:49]} 29. Qd1 {[%clk 0:01:36]}  e4 {[%clk 0:01:43]} 30. Qf1 {[%clk 0:01:28]}  Bf4 {[%clk 0:01:43]} 31. Kc2 {[%clk 0:01:28]}  Nd6 {[%clk 0:01:33]} 32. Bc1 {[%clk 0:01:27]}  Qd7 {[%clk 0:01:30]} 33. Qg2 {[%clk 0:01:17]}  Rh6 {[%clk 0:01:19]} 34. Rxh6 {[%clk 0:01:06]}  Bxh6 {[%clk 0:01:20]} 35. Nxe4 {[%clk 0:00:59]}  fxe4 {[%clk 0:01:13]} 36. Bxh6 {[%clk 0:00:58]}  exd3+ {[%clk 0:01:12]} 37. exd3 {[%clk 0:00:58]}  Nf5 {[%clk 0:00:45]} 38. Bf4 {[%clk 0:00:47]}  Qe6 {[%clk 0:00:42]} 39. Qa8+ {[%clk 0:00:37]}  Rf8 {[%clk 0:00:41]} 40. Qd5 {[%clk 0:00:26]}  Qxd5 {[%clk 0:00:41]} 41. cxd5 {[%clk 0:00:27]}  Ne7 {[%clk 0:00:42]} 42. Bd6 {[%clk 0:00:21]}  Rxf2+ {[%clk 0:00:41]} 43. Kb3 {[%clk 0:00:20]}  Nxd5 {[%clk 0:00:42]} 44. Rg5 {[%clk 0:00:18]}  Nc3 {[%clk 0:00:32]} 45. Bb8 {[%clk 0:00:16]}  Nxb5 {[%clk 0:00:32]} 46. Kc4 {[%clk 0:00:15]}  Rb2 {[%clk 0:00:31]} 47. Be5 {[%clk 0:00:13]}  Rb4+ {[%clk 0:00:31]} 48. Kd5 {[%clk 0:00:13]}  Kh7 {[%clk 0:00:26]} 49. Rxg7+ {[%clk 0:00:14]}  Kh6 {[%clk 0:00:26]} 50. Rb7 {[%clk 0:00:13]}  c4 {[%clk 0:00:23]} 51. dxc4 {[%clk 0:00:13]}  Nc3+ {[%clk 0:00:23]} 52. Kxd4 {[%clk 0:00:13]}  Ne2+ {[%clk 0:00:17]} 53. Kd3 {[%clk 0:00:14]}  Nc1+ {[%clk 0:00:16]} 54. Kc3 {[%clk 0:00:14]}  Na2+ {[%clk 0:00:15]} 55. Kd3 {[%clk 0:00:14]}  Rb3+ {[%clk 0:00:14]} 56. Ke4 {[%clk 0:00:14]}  Rb4 {[%clk 0:00:12]} 57. Kd5 {[%clk 0:00:14]}  Ra4 {[%clk 0:00:12]} 58. Rxa7 {[%clk 0:00:14]}  Nb4+ {[%clk 0:00:13]} 59. Kd6 {[%clk 0:00:14]}  Kg6 {[%clk 0:00:13]} 60. Bd4 {[%clk 0:00:13]}  Nxa6 {[%clk 0:00:12]} 61. Bxb6 {[%clk 0:00:13]}  Kf5 {[%clk 0:00:12]} 62. c5 {[%clk 0:00:13]}  Nxc5 {[%clk 0:00:12]} 63. Bxc5 {[%clk 0:00:14]}  Rxa7 {[%clk 0:00:12]} 64. Bxa7 {[%clk 0:00:15]} 1/2-1/2


[Site "https://www.chess.com"]

[Event "Titled Tuesday Blitz April 18 Early 2023"]
[White "Harshavardhan G B"]
[Black "Taichman, Ori"]
[WhiteFideId "25059009"]
[BlackFideId "2804069"]
[WhiteElo "2323"]
[BlackElo "2237"]
[Result "0-1"]
[Round "04"]
[TimeControl "180+2"]
[Date "2023.04.18"]
[WhiteClock "0:00:06"]
[BlackClock "0:00:07"]

1. d4 {[%clk 0:03:00]}  Nf6 {[%clk 0:02:57]} 2. c4 {[%clk 0:03:00]}  g6 {[%clk 0:02:57]} 3. Nc3 {[%clk 0:02:59]}  Bg7 {[%clk 0:02:57]} 4. e4 {[%clk 0:02:59]}  O-O {[%clk 0:02:58]} 5. Be2 {[%clk 0:02:58]}  d6 {[%clk 0:02:58]} 6. Nf3 {[%clk 0:02:57]}  e5 {[%clk 0:02:58]} 7. d5 {[%clk 0:02:58]}  a5 {[%clk 0:02:58]} 8. Bg5 {[%clk 0:02:57]}  h6 {[%clk 0:02:57]} 9. Be3 {[%clk 0:02:58]}  Ng4 {[%clk 0:02:55]} 10. Bc1 {[%clk 0:02:58]}  f5 {[%clk 0:02:56]} 11. exf5 {[%clk 0:02:59]}  gxf5 {[%clk 0:02:55]} 12. g3 {[%clk 0:03:00]}  Na6 {[%clk 0:01:57]} 13. Nh4 {[%clk 0:02:57]}  Nc5 {[%clk 0:01:54]} 14. h3 {[%clk 0:02:52]}  Nf6 {[%clk 0:01:44]} 15. f4 {[%clk 0:02:48]}  Nfe4 {[%clk 0:01:35]} 16. Nxe4 {[%clk 0:02:47]}  Nxe4 {[%clk 0:01:35]} 17. Qd3 {[%clk 0:02:46]}  a4 {[%clk 0:01:33]} 18. O-O {[%clk 0:02:38]}  a3 {[%clk 0:01:32]} 19. bxa3 {[%clk 0:02:28]}  exf4 {[%clk 0:01:32]} 20. Bxf4 {[%clk 0:02:29]}  Bxa1 {[%clk 0:01:25]} 21. Rxa1 {[%clk 0:02:30]}  Qf6 {[%clk 0:01:26]} 22. Rf1 {[%clk 0:02:17]}  Qc3 {[%clk 0:01:24]} 23. Bxh6 {[%clk 0:02:15]}  Nxg3 {[%clk 0:01:06]} 24. Rf2 {[%clk 0:00:58]}  Rxa3 {[%clk 0:00:20]} 25. Qxc3 {[%clk 0:00:23]}  Rxc3 {[%clk 0:00:18]} 26. Bxf8 {[%clk 0:00:23]}  Kxf8 {[%clk 0:00:17]} 27. Bg4 {[%clk 0:00:24]}  Rxc4 {[%clk 0:00:13]} 28. Kg2 {[%clk 0:00:24]}  Ke7 {[%clk 0:00:11]} 29. Bd1 {[%clk 0:00:17]}  Ne4 {[%clk 0:00:07]} 30. Rf4 {[%clk 0:00:17]}  Rd4 {[%clk 0:00:06]} 31. Be2 {[%clk 0:00:10]}  Rd2 {[%clk 0:00:06]} 32. Kf3 {[%clk 0:00:10]}  Nc3 {[%clk 0:00:06]} 33. Bc4 {[%clk 0:00:09]}  b5 {[%clk 0:00:06]} 34. Bb3 {[%clk 0:00:08]}  Rd3+ {[%clk 0:00:07]} 35. Kf2 {[%clk 0:00:07]}  Ne4+ {[%clk 0:00:07]} 36. Ke2 {[%clk 0:00:07]}  Rxh3 {[%clk 0:00:07]} 37. Nxf5+ {[%clk 0:00:07]}  Bxf5 {[%clk 0:00:07]} 38. Rxf5 {[%clk 0:00:08]}  Nc3+ {[%clk 0:00:07]} 39. Kd2 {[%clk 0:00:08]}  Nxa2 {[%clk 0:00:06]} 40. Rg5 {[%clk 0:00:08]}  Nb4 {[%clk 0:00:04]} 41. Bd1 {[%clk 0:00:07]}  Rd3+ {[%clk 0:00:03]} 42. Ke2 {[%clk 0:00:08]}  Rd4 {[%clk 0:00:04]} 43. Rg7+ {[%clk 0:00:08]}  Kd8 {[%clk 0:00:04]} 44. Rg8+ {[%clk 0:00:08]}  Kd7 {[%clk 0:00:05]} 45. Rg7+ {[%clk 0:00:08]}  Kc8 {[%clk 0:00:05]} 46. Rg8+ {[%clk 0:00:08]}  Kb7 {[%clk 0:00:06]} 47. Ke1 {[%clk 0:00:08]}  Rc4 {[%clk 0:00:05]} 48. Be2 {[%clk 0:00:07]}  Rc5 {[%clk 0:00:06]} 49. Bf3 {[%clk 0:00:07]}  Nxd5 {[%clk 0:00:06]} 50. Rg5 {[%clk 0:00:07]}  c6 {[%clk 0:00:06]} 51. Rg6 {[%clk 0:00:07]}  Kc7 {[%clk 0:00:06]} 52. Rg7+ {[%clk 0:00:07]}  Kb6 {[%clk 0:00:07]} 53. Rd7 {[%clk 0:00:08]}  Nb4 {[%clk 0:00:05]} 54. Rxd6 {[%clk 0:00:07]}  Re5+ {[%clk 0:00:05]} 55. Kd2 {[%clk 0:00:07]}  Kc5 {[%clk 0:00:06]} 56. Rd8 {[%clk 0:00:07]}  Re6 {[%clk 0:00:05]} 57. Rh8 {[%clk 0:00:06]}  Rd6+ {[%clk 0:00:05]} 58. Ke2 {[%clk 0:00:06]}  Nc2 {[%clk 0:00:04]} 59. Rh5+ {[%clk 0:00:06]}  Kb6 {[%clk 0:00:05]} 60. Be4 {[%clk 0:00:06]}  Nd4+ {[%clk 0:00:05]} 61. Kd3 {[%clk 0:00:07]}  c5 {[%clk 0:00:05]} 62. Ke3 {[%clk 0:00:07]}  b4 {[%clk 0:00:05]} 63. Rh8 {[%clk 0:00:07]}  Kb5 {[%clk 0:00:05]} 64. Rb8+ {[%clk 0:00:08]}  Kc4 {[%clk 0:00:05]} 65. Rc8 {[%clk 0:00:06]}  Nb3 {[%clk 0:00:04]} 66. Bh7 {[%clk 0:00:05]}  Kc3 {[%clk 0:00:04]} 67. Bg8 {[%clk 0:00:05]}  Rd3+ {[%clk 0:00:04]} 68. Kf2 {[%clk 0:00:04]}  Rd2+ {[%clk 0:00:03]} 69. Ke1 {[%clk 0:00:04]}  Rc2 {[%clk 0:00:04]} 70. Kd1 {[%clk 0:00:03]}  Rc1+ {[%clk 0:00:04]} 71. Ke2 {[%clk 0:00:03]}  Kb2 {[%clk 0:00:03]} 72. Rc7 {[%clk 0:00:02]}  Nd4+ {[%clk 0:00:03]} 73. Kd3 {[%clk 0:00:02]}  Nb3 {[%clk 0:00:02]} 74. Ke4 {[%clk 0:00:02]}  Rc3 {[%clk 0:00:02]} 75. Kd5 {[%clk 0:00:01]}  Rd3+ {[%clk 0:00:02]} 76. Ke4 {[%clk 0:00:01]}  Rd4+ {[%clk 0:00:03]} 77. Ke3 {[%clk 0:00:02]}  Rd6 {[%clk 0:00:02]} 78. Bxb3 {[%clk 0:00:01]}  Kxb3 {[%clk 0:00:02]} 79. Rxc5 {[%clk 0:00:02]}  Kb2 {[%clk 0:00:03]} 80. Rc8 {[%clk 0:00:02]}  b3 {[%clk 0:00:04]} 81. Rb8 {[%clk 0:00:02]}  Kc2 {[%clk 0:00:04]} 82. Rc8+ {[%clk 0:00:02]}  Kb1 {[%clk 0:00:04]} 83. Ke2 {[%clk 0:00:03]}  b2 {[%clk 0:00:04]} 84. Ra8 {[%clk 0:00:03]}  Rd5 {[%clk 0:00:04]} 85. Ra7 {[%clk 0:00:03]}  Kc2 {[%clk 0:00:04]} 86. Rc7+ {[%clk 0:00:03]}  Kb3 {[%clk 0:00:05]} 87. Rb7+ {[%clk 0:00:04]}  Kc3 {[%clk 0:00:05]} 88. Rc7+ {[%clk 0:00:04]}  Kb4 {[%clk 0:00:06]} 89. Rb7+ {[%clk 0:00:05]}  Rb5 {[%clk 0:00:06]} 90. Rxb5+ {[%clk 0:00:06]}  Kxb5 {[%clk 0:00:07]} 0-1


[Site "https://www.chess.com"]

[Event "Titled Tuesday Blitz April 18 Early 2023"]
[White "Wagner, Dennis"]
[Black "Garv Gaur"]
[WhiteFideId "24650684"]
[BlackFideId "45030839"]
[WhiteElo "2470"]
[BlackElo "2068"]
[Result "1-0"]
[Round "04"]
[TimeControl "180+2"]
[Date "2023.04.18"]
[WhiteClock "0:01:07"]
[BlackClock "0:00:10"]

1. d4 {[%clk 0:03:00]}  Nf6 {[%clk 0:02:58]} 2. Nf3 {[%clk 0:03:00]}  e6 {[%clk 0:02:58]} 3. g3 {[%clk 0:03:00]}  b6 {[%clk 0:02:57]} 4. Bg2 {[%clk 0:03:00]}  Bb7 {[%clk 0:02:55]} 5. Bf4 {[%clk 0:02:58]}  c5 {[%clk 0:02:53]} 6. Nc3 {[%clk 0:02:57]}  a6 {[%clk 0:02:47]} 7. O-O {[%clk 0:02:48]}  Nc6 {[%clk 0:02:45]} 8. d5 {[%clk 0:02:40]}  exd5 {[%clk 0:02:36]} 9. Nxd5 {[%clk 0:02:40]}  Nxd5 {[%clk 0:02:35]} 10. Qxd5 {[%clk 0:02:41]}  Be7 {[%clk 0:02:34]} 11. Rad1 {[%clk 0:02:31]}  Ra7 {[%clk 0:02:30]} 12. Ng5 {[%clk 0:02:21]}  O-O {[%clk 0:01:21]} 13. Nxh7 {[%clk 0:01:44]}  Nd4 {[%clk 0:01:02]} 14. Qh5 {[%clk 0:01:44]}  g6 {[%clk 0:00:26]} 15. Qh6 {[%clk 0:01:43]}  Nxe2+ {[%clk 0:00:25]} 16. Kh1 {[%clk 0:01:43]}  Bxg2+ {[%clk 0:00:24]} 17. Kxg2 {[%clk 0:01:44]}  Nxf4+ {[%clk 0:00:24]} 18. gxf4 {[%clk 0:01:44]}  Re8 {[%clk 0:00:20]} 19. Rfe1 {[%clk 0:01:31]}  d5 {[%clk 0:00:20]} 20. Rd3 {[%clk 0:01:20]}  d4 {[%clk 0:00:20]} 21. Rh3 {[%clk 0:01:19]}  Qd5+ {[%clk 0:00:16]} 22. f3 {[%clk 0:01:19]}  Qf5 {[%clk 0:00:12]} 23. Ng5 {[%clk 0:01:08]}  Qf6 {[%clk 0:00:09]} 24. Qh7+ {[%clk 0:01:06]}  Kf8 {[%clk 0:00:09]} 25. Qh8+ {[%clk 0:01:06]}  Qxh8 {[%clk 0:00:10]} 26. Rxh8+ {[%clk 0:01:06]}  Kg7 {[%clk 0:00:10]} 27. Rxe8 {[%clk 0:01:07]} 1-0


[Site "https://www.chess.com"]

[Event "Titled Tuesday Blitz April 18 Early 2023"]
[White "Korchmar, Vasiliy"]
[Black "Ljukin, Sergei"]
[WhiteFideId "24131750"]
[BlackFideId "14102200"]
[WhiteElo "2370"]
[BlackElo "2312"]
[Result "1-0"]
[Round "04"]
[TimeControl "180+2"]
[Date "2023.04.18"]
[WhiteClock "0:00:36"]
[BlackClock "0:00:03"]

1. e4 {[%clk 0:03:00]}  e6 {[%clk 0:02:45]} 2. d4 {[%clk 0:03:00]}  d5 {[%clk 0:02:45]} 3. e5 {[%clk 0:03:01]}  c5 {[%clk 0:02:46]} 4. c3 {[%clk 0:03:02]}  Nc6 {[%clk 0:02:46]} 5. Nf3 {[%clk 0:03:02]}  Qb6 {[%clk 0:02:46]} 6. Be2 {[%clk 0:03:02]}  cxd4 {[%clk 0:02:45]} 7. cxd4 {[%clk 0:03:02]}  Nh6 {[%clk 0:02:46]} 8. Bxh6 {[%clk 0:03:01]}  Qxb2 {[%clk 0:02:43]} 9. Nbd2 {[%clk 0:02:59]}  gxh6 {[%clk 0:02:40]} 10. Rb1 {[%clk 0:02:58]}  Qc3 {[%clk 0:02:31]} 11. O-O {[%clk 0:02:52]}  Qa5 {[%clk 0:02:21]} 12. Qb3 {[%clk 0:01:54]}  Be7 {[%clk 0:02:13]} 13. Qe3 {[%clk 0:01:48]}  Bg5 {[%clk 0:02:01]} 14. Nxg5 {[%clk 0:01:46]}  hxg5 {[%clk 0:02:01]} 15. Bb5 {[%clk 0:01:29]}  Bd7 {[%clk 0:01:52]} 16. Qxg5 {[%clk 0:01:28]}  h6 {[%clk 0:01:27]} 17. Qf6 {[%clk 0:01:24]}  Rg8 {[%clk 0:01:27]} 18. Nf3 {[%clk 0:01:16]}  Qd8 {[%clk 0:01:09]} 19. Qxh6 {[%clk 0:01:14]}  Qe7 {[%clk 0:01:08]} 20. Rfc1 {[%clk 0:01:09]}  O-O-O {[%clk 0:01:06]} 21. Qd2 {[%clk 0:01:02]}  Qe8 {[%clk 0:00:41]} 22. Qc3 {[%clk 0:00:46]}  Rg4 {[%clk 0:00:23]} 23. h3 {[%clk 0:00:44]}  Rf4 {[%clk 0:00:20]} 24. Qc5 {[%clk 0:00:45]}  b6 {[%clk 0:00:10]} 25. Qd6 {[%clk 0:00:44]}  Kb7 {[%clk 0:00:10]} 26. Rxc6 {[%clk 0:00:34]}  Bxc6 {[%clk 0:00:06]} 27. Bxc6+ {[%clk 0:00:35]}  Qxc6 {[%clk 0:00:03]} 28. Qxd8 {[%clk 0:00:36]} 1-0


[Site "https://www.chess.com"]

[Event "Titled Tuesday Blitz April 18 Early 2023"]
[White "Ronka, Erik"]
[Black "jinbojinbo"]
[WhiteFideId "505080"]
[WhiteElo "2264"]
[BlackElo "2710"]
[Result "1/2-1/2"]
[Round "04"]
[TimeControl "180+2"]
[Date "2023.04.18"]
[WhiteClock "0:00:05"]
[BlackClock "0:00:04"]

1. e4 {[%clk 0:03:00]}  e5 {[%clk 0:02:57]} 2. Nf3 {[%clk 0:03:00]}  Nc6 {[%clk 0:02:57]} 3. Bb5 {[%clk 0:03:00]}  a6 {[%clk 0:02:57]} 4. Ba4 {[%clk 0:03:01]}  Nf6 {[%clk 0:02:57]} 5. O-O {[%clk 0:03:01]}  Be7 {[%clk 0:02:58]} 6. d3 {[%clk 0:02:59]}  b5 {[%clk 0:02:58]} 7. Bb3 {[%clk 0:03:00]}  O-O {[%clk 0:02:58]} 8. Bd2 {[%clk 0:02:57]}  d5 {[%clk 0:02:57]} 9. exd5 {[%clk 0:02:39]}  Nxd5 {[%clk 0:02:58]} 10. a4 {[%clk 0:02:32]}  Bg4 {[%clk 0:02:40]} 11. h3 {[%clk 0:02:15]}  Bh5 {[%clk 0:02:32]} 12. g4 {[%clk 0:02:02]}  Bg6 {[%clk 0:02:30]} 13. Nc3 {[%clk 0:02:02]}  Nxc3 {[%clk 0:02:11]} 14. Bxc3 {[%clk 0:02:03]}  Qd6 {[%clk 0:02:02]} 15. Re1 {[%clk 0:01:57]}  Nd4 {[%clk 0:01:42]} 16. Nxd4 {[%clk 0:01:23]}  exd4 {[%clk 0:01:43]} 17. Bxd4 {[%clk 0:01:20]}  Qxd4 {[%clk 0:01:40]} 18. Rxe7 {[%clk 0:01:21]}  Qxb2 {[%clk 0:01:09]} 19. Rxc7 {[%clk 0:01:16]}  Qe5 {[%clk 0:01:04]} 20. Rb7 {[%clk 0:00:54]}  h5 {[%clk 0:01:00]} 21. axb5 {[%clk 0:00:52]}  axb5 {[%clk 0:01:00]} 22. Rxa8 {[%clk 0:00:52]}  Rxa8 {[%clk 0:01:01]} 23. Qf3 {[%clk 0:00:43]}  Rf8 {[%clk 0:00:32]} 24. Qd5 {[%clk 0:00:35]}  Qe1+ {[%clk 0:00:30]} 25. Kg2 {[%clk 0:00:35]}  hxg4 {[%clk 0:00:29]} 26. hxg4 {[%clk 0:00:36]}  Qe2 {[%clk 0:00:21]} 27. Qf3 {[%clk 0:00:31]}  Qe5 {[%clk 0:00:21]} 28. Rd7 {[%clk 0:00:23]}  b4 {[%clk 0:00:19]} 29. Rb7 {[%clk 0:00:21]}  Qd4 {[%clk 0:00:18]} 30. Rc7 {[%clk 0:00:12]}  Qd6 {[%clk 0:00:17]} 31. Rc4 {[%clk 0:00:11]}  Re8 {[%clk 0:00:14]} 32. Rf4 {[%clk 0:00:11]}  Re7 {[%clk 0:00:14]} 33. Qa8+ {[%clk 0:00:08]}  Kh7 {[%clk 0:00:13]} 34. Qf3 {[%clk 0:00:08]}  Kg8 {[%clk 0:00:13]} 35. Rc4 {[%clk 0:00:08]}  Qd8 {[%clk 0:00:06]} 36. Rc6 {[%clk 0:00:07]}  Bh7 {[%clk 0:00:04]} 37. Rc4 {[%clk 0:00:05]}  Re1 {[%clk 0:00:03]} 38. Rxb4 {[%clk 0:00:04]}  Bg6 {[%clk 0:00:03]} 39. Rb7 {[%clk 0:00:02]}  Qd6 {[%clk 0:00:03]} 40. Rxf7 {[%clk 0:00:01]}  Bxf7 {[%clk 0:00:02]} 41. Qxf7+ {[%clk 0:00:02]}  Kh7 {[%clk 0:00:03]} 42. Qg8+ {[%clk 0:00:02]}  Kg6 {[%clk 0:00:03]} 43. Qf7+ {[%clk 0:00:02]}  Kh7 {[%clk 0:00:03]} 44. Qh5+ {[%clk 0:00:03]}  Qh6 {[%clk 0:00:02]} 45. Qxh6+ {[%clk 0:00:03]}  Kxh6 {[%clk 0:00:02]} 46. f4 {[%clk 0:00:04]}  Kg6 {[%clk 0:00:02]} 47. Kf3 {[%clk 0:00:04]}  Kf6 {[%clk 0:00:03]} 48. Bd5 {[%clk 0:00:04]}  Ra1 {[%clk 0:00:03]} 49. c4 {[%clk 0:00:04]}  Rd1 {[%clk 0:00:04]} 50. Ke4 {[%clk 0:00:04]}  Re1+ {[%clk 0:00:04]} 51. Kd4 {[%clk 0:00:05]}  Rf1 {[%clk 0:00:04]} 52. Ke3 {[%clk 0:00:03]}  Re1+ {[%clk 0:00:04]} 53. Kf2 {[%clk 0:00:03]}  Rd1 {[%clk 0:00:05]} 54. Be4 {[%clk 0:00:03]}  Ke6 {[%clk 0:00:05]} 55. g5 {[%clk 0:00:04]}  Kd6 {[%clk 0:00:04]} 56. Ke3 {[%clk 0:00:04]}  Kc5 {[%clk 0:00:04]} 57. Bd5 {[%clk 0:00:04]}  Re1+ {[%clk 0:00:05]} 58. Kf3 {[%clk 0:00:04]}  Rd1 {[%clk 0:00:05]} 59. Kg4 {[%clk 0:00:05]}  Rg1+ {[%clk 0:00:06]} 60. Kf5 {[%clk 0:00:05]}  Rf1 {[%clk 0:00:05]} 61. Be4 {[%clk 0:00:05]}  Kd4 {[%clk 0:00:05]} 62. Bd5 {[%clk 0:00:04]}  Rf2 {[%clk 0:00:05]} 63. Kg6 {[%clk 0:00:04]}  Rxf4 {[%clk 0:00:05]} 64. Kxg7 {[%clk 0:00:04]}  Kxd3 {[%clk 0:00:05]} 65. c5 {[%clk 0:00:04]}  Rf5 {[%clk 0:00:05]} 66. g6 {[%clk 0:00:03]}  Rxd5 {[%clk 0:00:05]} 67. Kf7 {[%clk 0:00:03]}  Rxc5 {[%clk 0:00:05]} 68. g7 {[%clk 0:00:04]}  Rc7+ {[%clk 0:00:04]} 69. Kf8 {[%clk 0:00:04]}  Rc8+ {[%clk 0:00:04]} 70. Kf7 {[%clk 0:00:05]}  Rc7+ {[%clk 0:00:04]} 71. Kf8 {[%clk 0:00:05]}  Rxg7 {[%clk 0:00:04]} 72. Kxg7 {[%clk 0:00:05]} 1/2-1/2


[Site "https://www.chess.com"]

[Event "Titled Tuesday Blitz April 18 Early 2023"]
[White "Omelja, Artem"]
[Black "Manukyan, Sargis A."]
[WhiteFideId "14119846"]
[BlackFideId "13303970"]
[WhiteElo "2404"]
[BlackElo "2187"]
[Result "0-1"]
[Round "04"]
[TimeControl "180+2"]
[Date "2023.04.18"]
[WhiteClock "0:00:01"]
[BlackClock "0:00:36"]

1. d4 {[%clk 0:03:00]}  d5 {[%clk 0:02:59]} 2. c4 {[%clk 0:02:59]}  e6 {[%clk 0:03:00]} 3. Nc3 {[%clk 0:02:58]}  Nf6 {[%clk 0:03:01]} 4. Bg5 {[%clk 0:02:57]}  Be7 {[%clk 0:03:01]} 5. e3 {[%clk 0:02:57]}  O-O {[%clk 0:03:01]} 6. Nf3 {[%clk 0:02:55]}  h6 {[%clk 0:03:01]} 7. Bh4 {[%clk 0:02:55]}  b6 {[%clk 0:03:01]} 8. cxd5 {[%clk 0:02:54]}  Nxd5 {[%clk 0:03:02]} 9. Bxe7 {[%clk 0:02:49]}  Qxe7 {[%clk 0:03:03]} 10. Be2 {[%clk 0:02:46]}  Bb7 {[%clk 0:03:02]} 11. O-O {[%clk 0:02:45]}  Nd7 {[%clk 0:03:02]} 12. Rc1 {[%clk 0:02:38]}  c5 {[%clk 0:03:02]} 13. h3 {[%clk 0:02:28]}  Rac8 {[%clk 0:03:01]} 14. Qb3 {[%clk 0:02:09]}  Rfd8 {[%clk 0:02:58]} 15. Rfd1 {[%clk 0:02:08]}  cxd4 {[%clk 0:02:57]} 16. Nxd4 {[%clk 0:02:07]}  Nc5 {[%clk 0:02:56]} 17. Qa3 {[%clk 0:02:06]}  a5 {[%clk 0:02:52]} 18. Nxd5 {[%clk 0:01:51]}  Bxd5 {[%clk 0:02:49]} 19. Bf3 {[%clk 0:01:46]}  Bxf3 {[%clk 0:02:45]} 20. Nxf3 {[%clk 0:01:47]}  Kf8 {[%clk 0:02:43]} 21. Nd4 {[%clk 0:01:44]}  e5 {[%clk 0:02:33]} 22. Nb5 {[%clk 0:01:27]}  Rxd1+ {[%clk 0:02:15]} 23. Rxd1 {[%clk 0:01:28]}  Rd8 {[%clk 0:02:15]} 24. Rxd8+ {[%clk 0:01:13]}  Qxd8 {[%clk 0:02:16]} 25. Qc3 {[%clk 0:01:11]}  Qd1+ {[%clk 0:02:07]} 26. Kh2 {[%clk 0:01:07]}  Qd3 {[%clk 0:02:04]} 27. a4 {[%clk 0:00:38]}  Qxc3 {[%clk 0:02:00]} 28. Nxc3 {[%clk 0:00:39]}  Nd3 {[%clk 0:01:58]} 29. b3 {[%clk 0:00:25]}  Nxf2 {[%clk 0:01:32]} 30. Nd5 {[%clk 0:00:23]}  Nd3 {[%clk 0:01:30]} 31. Nxb6 {[%clk 0:00:19]}  Nc5 {[%clk 0:01:27]} 32. Nc4 {[%clk 0:00:18]}  Nxb3 {[%clk 0:01:24]} 33. Nxe5 {[%clk 0:00:19]}  Ke7 {[%clk 0:01:20]} 34. Kg3 {[%clk 0:00:18]}  Ke6 {[%clk 0:01:21]} 35. Nc6 {[%clk 0:00:04]}  Kd6 {[%clk 0:01:20]} 36. Nd8 {[%clk 0:00:02]}  f6 {[%clk 0:01:06]} 37. Kf4 {[%clk 0:00:02]}  Nc5 {[%clk 0:01:05]} 38. Kf5 {[%clk 0:00:02]}  Kd7 {[%clk 0:00:59]} 39. Nf7 {[%clk 0:00:02]}  Nxa4 {[%clk 0:00:59]} 40. Kg6 {[%clk 0:00:02]}  Nc5 {[%clk 0:00:50]} 41. Kxg7 {[%clk 0:00:03]}  Ke7 {[%clk 0:00:50]} 42. Nxh6 {[%clk 0:00:02]}  a4 {[%clk 0:00:48]} 43. Nf5+ {[%clk 0:00:03]}  Ke6 {[%clk 0:00:49]} 44. Nd4+ {[%clk 0:00:02]}  Ke5 {[%clk 0:00:49]} 45. Nc2 {[%clk 0:00:02]}  Ne4 {[%clk 0:00:36]} 46. g4 {[%clk 0:00:01]}  Nf2 {[%clk 0:00:36]} 0-1


[Site "https://www.chess.com"]